fUSD/lending_fUSD_20240422
["ID","MTS","AMOUNT","RATE_DAILY","PERIOD"]
[323192190,1713797452135,-838.06,0.00013972,2]
[323192191,1713797452145,-823.88,0.00013972,2]
[323192192,1713797452154,-695.73,0.00013972,2]
[323192193,1713797452164,-500.0,0.00013972,2]
[323192194,1713797452173,-504.45640085,0.00013972,2]
[323192195,1713797452182,-700.91,0.00013972,2]
[323192196,1713797452191,-1264.31,0.00013972,2]
[323192197,1713797452201,-1559.22,0.00013972,2]
[323192198,1713797452210,-500.0,0.00013972,2]
[323192199,1713797452220,-500.0,0.00013972,2]
[323192200,1713797452229,-1419.06,0.00013972,2]
[323192201,1713797452239,-500.0,0.00013972,2]
[323192202,1713797452248,-701.45,0.00013972,2]
[323192203,1713797452258,-500.0,0.00013972,2]
[323192204,1713797452268,-2035.85,0.00013972,2]
[323192205,1713797452277,-500.0,0.00013972,2]
[323192206,1713797452287,-682.77,0.00013972,2]
[323192207,1713797452299,-565.59,0.00013972,2]
[323192208,1713797452309,-500.0,0.00013972,2]
[323192209,1713797452318,-1024.89,0.00013972,2]
[323192210,1713797452328,-827.13,0.00013972,2]
[323192211,1713797452337,-500.0,0.00013972,2]
[323192212,1713797452347,-500.0,0.00013972,2]
[323192213,1713797452356,-500.0,0.00013972,2]
[323192214,1713797452366,-500.0,0.00013972,2]
[323192215,1713797452376,-500.0,0.00013972,2]
[323192216,1713797452385,-500.0,0.00013972,2]
[323192217,1713797452395,-424.23572604,0.00013972,2]
[323192218,1713797452405,-500.0,0.00013972,2]
[323192219,1713797452415,-544.40253101,0.00013972,2]
[323192220,1713797452424,-879.23,0.00013972,2]
[323192221,1713797452434,-994.5,0.00013972,2]
[323192222,1713797452444,-1043.7,0.00013972,2]
[323192223,1713797452454,-500.0,0.00013972,2]
[323192224,1713797452463,-500.0,0.00013972,2]
[323192225,1713797452472,-500.0,0.00013972,2]
[323192226,1713797452482,-500.0,0.00013972,2]
[323192227,1713797452491,-500.0,0.00013972,2]
[323192228,1713797452500,-500.0,0.00013972,2]
[323192229,1713797452510,-500.0,0.00013972,2]
[323192230,1713797452519,-500.0,0.00013972,2]
[323192231,1713797452528,-500.0,0.00013972,2]
[323192232,1713797452537,-823.08,0.00013972,2]
[323192233,1713797452551,-419.10609563,0.00013972,2]
[323192234,1713797452560,-500.0,0.00013972,2]
[323192235,1713797452571,-1097.6,0.00013972,2]
[323192236,1713797452581,-922.87,0.00013972,2]
[323192237,1713797452591,-500.0,0.00013972,2]
[323192238,1713797452600,-737.55,0.00013972,2]
[323192239,1713797452609,-500.0,0.00013972,2]
[323192240,1713797452619,-917.85,0.00013972,2]
[323192241,1713797452630,-500.0,0.00013972,2]
[323192242,1713797452639,-1006.86,0.00013972,2]
[323192243,1713797452650,-500.0,0.00013972,2]
[323192244,1713797452660,-714.82,0.00013972,2]
[323192245,1713797452669,-500.0,0.00013972,2]
[323192246,1713797452679,-875.05,0.00013972,2]
[323192247,1713797452689,-546.14,0.00013972,2]
[323192248,1713797452698,-754.6,0.00013972,2]
[323192249,1713797452707,-500.0,0.00013972,2]
[323192250,1713797452717,-557.81,0.00013972,2]
[323192251,1713797452726,-876.98,0.00013972,2]
[323192252,1713797452735,-1009.26,0.00013972,2]
[323192253,1713797452744,-540.83,0.00013972,2]
[323192254,1713797452753,-500.0,0.00013972,2]
[323192255,1713797452763,-979.17,0.00013972,2]
[323192256,1713797452772,-1213.75,0.00013972,2]
[323192257,1713797452781,-529.79,0.00013972,2]
[323192258,1713797452791,-500.0,0.00013972,2]
[323192259,1713797452803,-500.0,0.00013972,2]
[323192260,1713797452813,-500.0,0.00013972,2]
[323192261,1713797452822,-500.0,0.00013972,2]
[323192262,1713797452831,-500.0,0.00013972,2]
[323192263,1713797452840,-654.52,0.00013972,2]
[323192264,1713797452849,-695.25,0.00013972,2]
[323192265,1713797452859,-648.44,0.00013972,2]
[323192266,1713797452868,-536.3,0.00013972,2]
[323192267,1713797452877,-1581.61,0.00013972,2]
[323192268,1713797452886,-899.31,0.00013972,2]
[323192269,1713797452895,-616.44,0.00013972,2]
[323192270,1713797452904,-500.0,0.00013972,2]
[323192271,1713797452914,-508.82,0.00013972,2]
[323192272,1713797452924,-754.81,0.00013972,2]
[323192273,1713797452933,-500.0,0.00013972,2]
[323192274,1713797452943,-645.16,0.00013972,2]
[323192275,1713797452953,-500.0,0.00013972,2]
[323192276,1713797452963,-592.46,0.00013972,2]
[323192277,1713797452972,-500.0,0.00013972,2]
[323192278,1713797452982,-1128.93,0.00013972,2]
[323192279,1713797452992,-500.0,0.00013972,2]
[323192280,1713797453001,-565.85,0.00013972,2]
[323192281,1713797453010,-764.49,0.00013972,2]
[323192282,1713797453020,-513.41,0.00013972,2]
[323192283,1713797453029,-500.0,0.00013972,2]
[323192284,1713797453040,-500.0,0.00013972,2]
[323192285,1713797453053,-1329.67,0.00013972,2]
[323192286,1713797453064,-916.04,0.00013972,2]
[323192287,1713797453074,-609.02,0.00013972,2]
[323192288,1713797453086,-1067.22,0.00013972,2]
[323192289,1713797453094,-526.8,0.00013972,2]
[323192290,1713797453106,-547.37,0.00013972,2]
[323192291,1713797453116,-1199.39,0.00013972,2]
[323192292,1713797453127,-1191.35,0.00013972,2]
[323192293,1713797453136,-500.0,0.00013972,2]
[323192294,1713797453147,-599.0,0.00013972,2]
[323192295,1713797453158,-500.0,0.00013972,2]
[323192296,1713797453168,-500.0,0.00013972,2]
[323192297,1713797453177,-830.65,0.00013972,2]
[323192298,1713797453187,-500.0,0.00013972,2]
[323192299,1713797453196,-605.10624873,0.00013972,2]
[323192300,1713797453206,-500.0,0.00013972,2]
[323192301,1713797453215,-527.62,0.00013972,2]
[323192302,1713797453225,-519.55,0.00013972,2]
[323192303,1713797453234,-500.0,0.00013972,2]
[323192304,1713797453243,-597.41,0.00013972,2]
[323192305,1713797453252,-500.0,0.00013972,2]
[323192306,1713797453262,-765.7,0.00013972,2]
[323192307,1713797453271,-500.0,0.00013972,2]
[323192308,1713797453281,-1234.36,0.00013972,2]
[323192309,1713797453290,-522.17,0.00013972,2]
[323192310,1713797453300,-500.0,0.00013972,2]
[323192311,1713797453309,-500.0,0.00013972,2]
[323192312,1713797453318,-674.85,0.00013972,2]
[323192313,1713797453327,-500.0,0.00013972,2]
[323192314,1713797453337,-799.98,0.00013972,2]
[323192315,1713797453346,-500.0,0.00013972,2]
[323192316,1713797453356,-500.0,0.00013972,2]
[323192317,1713797453365,-500.0,0.00013972,2]
[323192318,1713797453374,-882.96,0.00013972,2]
[323192319,1713797453383,-760.73,0.00013972,2]
[323192320,1713797453392,-1671.57,0.00013972,2]
[323192321,1713797453402,-500.0,0.00013972,2]
[323192322,1713797453411,-500.0,0.00013972,2]
[323192323,1713797453420,-500.0,0.00013972,2]
[323192324,1713797453429,-500.0,0.00013972,2]
[323192325,1713797453439,-712.9,0.00013972,2]
[323192326,1713797453448,-500.0,0.00013972,2]
[323192327,1713797453458,-500.0,0.00013972,2]
[323192328,1713797453467,-576.03,0.00013972,2]
[323192329,1713797453477,-716.68,0.00013972,2]
[323192330,1713797453486,-509.77,0.00013972,2]
[323192331,1713797453495,-761.27,0.00013972,2]
[323192332,1713797453505,-500.0,0.00013972,2]
[323192333,1713797453514,-924.16,0.00013972,2]
[323192334,1713797453523,-500.0,0.00013972,2]
[323192335,1713797453532,-945.44,0.00013972,2]
[323192336,1713797453541,-500.0,0.00013972,2]
[323192337,1713797453555,-500.0,0.00013972,2]
[323192338,1713797453564,-1153.66,0.00013972,2]
[323192339,1713797453576,-500.0,0.00013972,2]
[323192340,1713797453585,-500.0,0.00013972,2]
[323192341,1713797453595,-607.91,0.00013972,2]
[323192342,1713797453604,-500.0,0.00013972,2]
[323192343,1713797453613,-711.18,0.00013972,2]
[323192344,1713797453624,-500.0,0.00013972,2]
[323192345,1713797453633,-1584.08,0.00013972,2]
[323192346,1713797453643,-500.0,0.00013972,2]
[323192347,1713797453654,-500.0,0.00013972,2]
[323192348,1713797453666,-1399.14,0.00013972,2]
[323192349,1713797453677,-590.36,0.00013972,2]
[323192350,1713797453687,-500.0,0.00013972,2]
[323192351,1713797453696,-500.0,0.00013972,2]
[323192352,1713797453705,-500.0,0.00013972,2]
[323192353,1713797453715,-1377.24,0.00013972,2]
[323192354,1713797453725,-500.0,0.00013972,2]
[323192355,1713797453735,-1411.55,0.00013972,2]
[323192356,1713797453745,-621.9,0.00013972,2]
[323192357,1713797453754,-500.0,0.00013972,2]
[323192358,1713797453764,-500.0,0.00013972,2]
[323192359,1713797453773,-500.0,0.00013972,2]
[323192360,1713797453782,-563.41,0.00013972,2]
[323192361,1713797453791,-577.54,0.00013972,2]
[323192362,1713797453803,-510.5,0.00013972,2]
[323192363,1713797453813,-937.95,0.00013972,2]
[323192364,1713797453822,-500.0,0.00013972,2]
[323192365,1713797453832,-1083.5,0.00013972,2]
[323192366,1713797453841,-500.0,0.00013972,2]
[323192367,1713797453850,-500.0,0.00013972,2]
[323192368,1713797453860,-500.0,0.00013972,2]
[323192369,1713797453869,-500.0,0.00013972,2]
[323192370,1713797453878,-500.0,0.00013972,2]
[323192371,1713797453888,-500.0,0.00013972,2]
[323192372,1713797453897,-500.0,0.00013972,2]
[323192373,1713797453907,-980.0,0.00013972,2]
[323192374,1713797453917,-500.0,0.00013972,2]
[323192375,1713797453926,-924.86,0.00013972,2]
[323192376,1713797453936,-959.55,0.00013972,2]
[323192377,1713797453946,-500.0,0.00013972,2]
[323192378,1713797453956,-2823.13,0.00013972,2]
[323192379,1713797453965,-500.0,0.00013972,2]
[323192380,1713797453975,-500.0,0.00013972,2]
[323192381,1713797453985,-883.3,0.00013972,2]
[323192382,1713797453995,-874.63,0.00013972,2]
[323192383,1713797454005,-700.98,0.00013972,2]
[323192384,1713797454014,-500.0,0.00013972,2]
[323192385,1713797454024,-806.56,0.00013972,2]
[323192386,1713797454034,-500.0,0.00013972,2]
[323192387,1713797454044,-500.0,0.00013972,2]
[323192388,1713797454064,-500.0,0.00013972,2]
[323192389,1713797454073,-523.73,0.00013972,2]
[323192390,1713797454083,-500.0,0.00013972,2]
[323192391,1713797454093,-1672.2,0.00013972,2]
[323192392,1713797454102,-1520.08,0.00013972,2]
[323192393,1713797454112,-500.0,0.00013972,2]
[323192394,1713797454122,-790.98,0.00013972,2]
[323192395,1713797454132,-500.0,0.00013972,2]
[323192396,1713797454142,-1073.76,0.00013972,2]
[323192397,1713797454152,-500.0,0.00013972,2]
[323192398,1713797454162,-500.0,0.00013972,2]
[323192399,1713797454171,-500.0,0.00013972,2]
[323192400,1713797454181,-2760.74,0.00013972,2]
[323192401,1713797454191,-500.0,0.00013972,2]
[323192402,1713797454201,-500.0,0.00013972,2]
[323192403,1713797454210,-2393.56,0.00013972,2]
[323192404,1713797454220,-893.61,0.00013972,2]
[323192405,1713797454230,-2225.93,0.00013972,2]
[323192406,1713797454239,-500.0,0.00013972,2]
[323192407,1713797454249,-500.0,0.00013972,2]
[323192408,1713797454259,-592.04,0.00013972,2]
[323192409,1713797454269,-500.0,0.00013972,2]
[323192410,1713797454279,-536.51,0.00013972,2]
[323192411,1713797454289,-585.05,0.00013972,2]
[323192412,1713797454303,-653.22,0.00013972,2]
[323192413,1713797454313,-744.65,0.00013972,2]
[323192414,1713797454323,-1196.42,0.00013972,2]
[323192415,1713797454333,-1707.12,0.00013972,2]
[323192416,1713797454343,-621.83,0.00013972,2]
[323192418,1713797454353,-500.0,0.00013972,2]
[323192419,1713797454363,-1925.63,0.00013972,2]
[323192420,1713797454373,-860.68,0.00013972,2]
[323192421,1713797454384,-1337.05,0.00013972,2]
[323192422,1713797454394,-500.0,0.00013972,2]
[323192423,1713797454404,-1573.87,0.00013972,2]
[323192424,1713797454413,-500.0,0.00013972,2]
[323192425,1713797454423,-1905.0,0.00013972,2]
[323192426,1713797454432,-1537.84,0.00013972,2]
[323192427,1713797454442,-2230.39,0.00013972,2]
[323192428,1713797454452,-500.0,0.00013972,2]
[323192429,1713797454462,-530.27,0.00013972,2]
[323192430,1713797454472,-1921.8,0.00013972,2]
[323192431,1713797454482,-548.4,0.00013972,2]
[323192432,1713797454492,-500.0,0.00013972,2]
[323192433,1713797454503,-1867.05,0.00013972,2]
[323192434,1713797454513,-500.0,0.00013972,2]
[323192435,1713797454523,-500.0,0.00013972,2]
[323192436,1713797454532,-602.66,0.00013972,2]
[323192437,1713797454543,-771.01,0.00013972,2]
[323192438,1713797454557,-1146.4,0.00013972,2]
[323192439,1713797454567,-500.0,0.00013972,2]
[323192440,1713797454579,-2233.3,0.00013972,2]
[323192441,1713797454589,-500.0,0.00013972,2]
[323192442,1713797454599,-613.68,0.00013972,2]
[323192443,1713797454610,-1023.45,0.00013972,2]
[323192444,1713797454620,-1722.61,0.00013972,2]
[323192445,1713797454630,-500.0,0.00013972,2]
[323192446,1713797454640,-3140.94,0.00013972,2]
[323192447,1713797454652,-949.36,0.00013972,2]
[323192448,1713797454662,-500.0,0.00013972,2]
[323192449,1713797454672,-2355.94,0.00013972,2]
[323192450,1713797454682,-500.0,0.00013972,2]
[323192451,1713797454691,-1192.01,0.00013972,2]
[323192452,1713797454701,-583.5,0.00013972,2]
[323192453,1713797454711,-579.7255135,0.00013972,2]
[323192454,1713797454720,-3432.34,0.00013972,2]
[323192455,1713797454730,-500.0,0.00013972,2]
[323192456,1713797454740,-934.19,0.00013972,2]
[323192457,1713797454749,-500.0,0.00013972,2]
[323192458,1713797454760,-1577.52,0.00013972,2]
[323192459,1713797454770,-655.72,0.00013972,2]
[323192460,1713797454780,-2449.83,0.00013972,2]
[323192461,1713797454789,-500.0,0.00013972,2]
[323192462,1713797454801,-500.0,0.00013972,2]
[323192463,1713797454810,-500.0,0.00013972,2]
[323192464,1713797454820,-629.16,0.00013972,2]
[323192465,1713797454830,-2911.25,0.00013972,2]
[323192466,1713797454839,-1694.16,0.00013972,2]
[323192467,1713797454848,-500.0,0.00013972,2]
[323192468,1713797454858,-2960.14,0.00013972,2]
[323192469,1713797454867,-500.0,0.00013972,2]
[323192470,1713797454876,-500.0,0.00013972,2]
[323192471,1713797454886,-1353.54,0.00013972,2]
[323192472,1713797454896,-158.76796145,0.00013972,2]
[323192473,1713797454905,-500.0,0.00013972,2]
[323192474,1713797454915,-1442.93,0.00013972,2]
[323192475,1713797454925,-938.63,0.00013972,2]
[323192476,1713797454935,-500.0,0.00013972,2]
[323192477,1713797454945,-500.0,0.00013972,2]
[323192478,1713797454954,-500.0,0.00013972,2]
[323192479,1713797454964,-2705.91,0.00013972,2]
[323192480,1713797454974,-1242.4,0.00013972,2]
[323192481,1713797454983,-2473.3,0.00013972,2]
[323192482,1713797454993,-500.0,0.00013972,2]
[323192483,1713797455003,-935.9,0.00013972,2]
[323192484,1713797455013,-500.0,0.00013972,2]
[323192485,1713797455022,-620.88501601,0.00013972,2]
[323192486,1713797455032,-1207.11,0.00013972,2]
[323192487,1713797455042,-993.6,0.00013972,2]
[323192488,1713797455055,-500.0,0.00013972,2]
[323192489,1713797455065,-1289.96,0.00013972,2]
[323192490,1713797455075,-565.11,0.00013972,2]
[323192491,1713797455085,-829.81,0.00013972,2]
[323192492,1713797455095,-1843.6,0.00013972,2]
[323192493,1713797455105,-500.0,0.00013972,2]
[323192494,1713797455115,-1362.1,0.00013972,2]
[323192495,1713797455124,-1467.25,0.00013972,2]
[323192496,1713797455134,-704.53,0.00013972,2]
[323192497,1713797455144,-882.03,0.00013972,2]
[323192498,1713797455154,-541.13,0.00013972,2]
[323192499,1713797455164,-753.78,0.00013972,2]
[323192500,1713797455174,-500.0,0.00013972,2]
[323192501,1713797455184,-1320.87,0.00013972,2]
[323192502,1713797455195,-500.0,0.00013972,2]
[323192503,1713797455205,-500.0,0.00013972,2]
[323192504,1713797455215,-1569.26,0.00013972,2]
[323192505,1713797455225,-1031.94,0.00013972,2]
[323192506,1713797455235,-591.11,0.00013972,2]
[323192507,1713797455245,-500.0,0.00013972,2]
[323192508,1713797455256,-1277.78,0.00013972,2]
[323192509,1713797455266,-500.0,0.00013972,2]
[323192510,1713797455276,-627.98,0.00013972,2]
[323192511,1713797455286,-500.0,0.00013972,2]
[323192512,1713797455296,-500.0,0.00013972,2]
[323192513,1713797455308,-1000.0,0.00013972,2]
[323192514,1713797455317,-862.56,0.00013972,2]
[323192515,1713797455327,-764.44,0.00013972,2]
[323192516,1713797455338,-500.0,0.00013972,2]
[323192517,1713797455348,-2397.11,0.00013972,2]
[323192518,1713797455358,-500.0,0.00013972,2]
[323192519,1713797455369,-500.0,0.00013972,2]
[323192520,1713797455380,-2477.99,0.00013972,2]
[323192521,1713797455390,-500.0,0.00013972,2]
[323192522,1713797455400,-500.0,0.00013972,2]
[323192523,1713797455411,-1613.77,0.00013972,2]
[323192524,1713797455421,-500.0,0.00013972,2]
[323192525,1713797455431,-1102.61,0.00013972,2]
[323192526,1713797455441,-500.0,0.00013972,2]
[323192527,1713797455452,-2384.89,0.00013972,2]
[323192528,1713797455462,-500.0,0.00013972,2]
[323192529,1713797455472,-500.0,0.00013972,2]
[323192530,1713797455482,-895.67,0.00013972,2]
[323192531,1713797455492,-500.0,0.00013972,2]
[323192532,1713797455503,-2040.23,0.00013972,2]
[323192533,1713797455514,-1762.63,0.00013972,2]
[323192534,1713797455525,-1538.98,0.00013972,2]
[323192535,1713797455535,-850.05,0.00013972,2]
[323192536,1713797455545,-1415.73,0.00013972,2]
[323192537,1713797455557,-500.0,0.00013972,2]
[323192538,1713797455567,-500.0,0.00013972,2]
[323192539,1713797455578,-500.0,0.00013972,2]
[323192540,1713797455589,-500.0,0.00013972,2]
[323192541,1713797455598,-500.0,0.00013972,2]
[323192542,1713797455608,-729.31,0.00013972,2]
[323192543,1713797455618,-1693.43,0.00013972,2]
[323192544,1713797455628,-852.52,0.00013972,2]
[323192545,1713797455637,-500.0,0.00013972,2]
[323192546,1713797455647,-500.0,0.00013972,2]
[323192547,1713797455657,-500.0,0.00013972,2]
[323192548,1713797455666,-500.0,0.00013972,2]
[323192549,1713797455676,-2319.47,0.00013972,2]
[323192550,1713797455686,-657.54,0.00013972,2]
[323192551,1713797455697,-514.91,0.00013972,2]
[323192552,1713797455707,-1666.36,0.00013972,2]
[323192553,1713797455717,-1027.43,0.00013972,2]
[323192554,1713797455727,-500.0,0.00013972,2]
[323192555,1713797455738,-1040.63,0.00013972,2]
[323192556,1713797455748,-500.0,0.00013972,2]
[323192557,1713797455758,-500.0,0.00013972,2]
[323192558,1713797455769,-500.0,0.00013972,2]
[323192559,1713797455779,-1089.24,0.00013972,2]
[323192560,1713797455790,-500.0,0.00013972,2]
[323192561,1713797455800,-647.25,0.00013972,2]
[323192562,1713797455810,-800.48,0.00013972,2]
[323192563,1713797455820,-1476.38,0.00013972,2]
[323192564,1713797455830,-500.0,0.00013972,2]
[323192565,1713797455841,-1308.52,0.00013972,2]
[323192566,1713797455851,-609.88,0.00013972,2]
[323192567,1713797455860,-3195.23,0.00013972,2]
[323192568,1713797455870,-574.79609084,0.00013972,2]
[323192569,1713797455879,-500.0,0.00013972,2]
[323192570,1713797455889,-500.0,0.00013972,2]
[323192571,1713797455899,-1502.39,0.00013972,2]
[323192572,1713797455909,-500.0,0.00013972,2]
[323192573,1713797455918,-500.0,0.00013972,2]
[323192574,1713797455929,-500.0,0.00013972,2]
[323192575,1713797455939,-2718.2,0.00013972,2]
[323192576,1713797455949,-500.0,0.00013972,2]
[323192577,1713797455959,-531.53184748,0.00013972,2]
[323192578,1713797455969,-640.02,0.00013972,2]
[323192579,1713797455980,-500.0,0.00013972,2]
[323192580,1713797455990,-500.0,0.00013972,2]
[323192581,1713797456000,-1575.47,0.00013972,2]
[323192582,1713797456010,-500.0,0.00013972,2]
[323192583,1713797456021,-500.0,0.00013972,2]
[323192584,1713797456031,-500.0,0.00013972,2]
[323192585,1713797456041,-782.61,0.00013972,2]
[323192586,1713797456052,-597.23,0.00013972,2]
[323192587,1713797456062,-500.0,0.00013972,2]
[323192588,1713797456072,-1604.23,0.00013972,2]
[323192589,1713797456082,-500.0,0.00013972,2]
[323192590,1713797456093,-1831.23,0.00013972,2]
[323192591,1713797456104,-500.0,0.00013972,2]
[323192592,1713797456408,-748.37,0.00013972,2]
[323192593,1713797456418,-500.0,0.00013972,2]
[323192594,1713797456428,-1636.88,0.00013972,2]
[323192595,1713797456437,-500.0,0.00013972,2]
[323192596,1713797456447,-1031.64,0.00013972,2]
[323192597,1713797456456,-500.0,0.00013972,2]
[323192598,1713797456466,-4755.82,0.00013972,2]
[323192599,1713797456475,-500.0,0.00013972,2]
[323192600,1713797456485,-500.0,0.00013972,2]
[323192601,1713797456494,-500.0,0.00013972,2]
[323192602,1713797456504,-500.0,0.00013972,2]
[323192603,1713797456513,-1858.27,0.00013972,2]
[323192604,1713797456522,-898.65,0.00013972,2]
[323192605,1713797456531,-554.93740715,0.00013972,2]
[323192606,1713797456540,-500.0,0.00013972,2]
[323192607,1713797456551,-605.60696822,0.00013972,2]
[323192608,1713797456561,-500.0,0.00013972,2]
[323192609,1713797456571,-634.45,0.00013972,2]
[323192610,1713797456581,-500.0,0.00013972,2]
[323192611,1713797456590,-772.96,0.00013972,2]
[323192612,1713797456600,-619.83,0.00013972,2]
[323192613,1713797456610,-500.0,0.00013972,2]
[323192614,1713797456619,-500.0,0.00013972,2]
[323192615,1713797456629,-500.0,0.00013972,2]
[323192616,1713797456640,-1549.38,0.00013972,2]
[323192617,1713797456650,-500.0,0.00013972,2]
[323192618,1713797456660,-500.0,0.00013972,2]
[323192619,1713797456669,-500.0,0.00013972,2]
[323192620,1713797456679,-500.0,0.00013972,2]
[323192621,1713797456688,-586.35,0.00013972,2]
[323192622,1713797456700,-930.43,0.00013972,2]
[323192623,1713797456709,-2874.27,0.00013972,2]
[323192624,1713797456719,-500.0,0.00013972,2]
[323192625,1713797456728,-678.71,0.00013972,2]
[323192626,1713797456738,-500.0,0.00013972,2]
[323192627,1713797456747,-1083.59,0.00013972,2]
[323192628,1713797456756,-831.82,0.00013972,2]
[323192629,1713797456765,-500.0,0.00013972,2]
[323192630,1713797456774,-500.0,0.00013972,2]
[323192631,1713797456784,-500.0,0.00013972,2]
[323192632,1713797456794,-798.25,0.00013972,2]
[323192633,1713797456804,-662.31,0.00013972,2]
[323192634,1713797456813,-1968.11,0.00013972,2]
[323192635,1713797456823,-500.0,0.00013972,2]
[323192636,1713797456833,-1767.94,0.00013972,2]
[323192637,1713797456842,-597.5,0.00013972,2]
[323192638,1713797456851,-1909.23,0.00013972,2]
[323192639,1713797456861,-500.0,0.00013972,2]
[323192640,1713797456870,-233.01293189,0.00013972,2]
[323192641,1713797456879,-710.03,0.00013972,2]
[323192642,1713797456889,-753.14,0.00013972,2]
[323192643,1713797456899,-500.0,0.00013972,2]
[323192644,1713797456908,-500.0,0.00013972,2]
[323192645,1713797456918,-1427.68,0.00013972,2]
[323192646,1713797456927,-236.50025702,0.00013972,2]
[323192647,1713797456936,-500.0,0.00013972,2]
[323192648,1713797456945,-630.8,0.00013972,2]
[323192649,1713797456955,-2018.57,0.00013972,2]
[323192650,1713797456964,-500.0,0.00013972,2]
[323192651,1713797456973,-835.81,0.00013972,2]
[323192652,1713797456983,-500.0,0.00013972,2]
[323192653,1713797456992,-500.0,0.00013972,2]
[323192654,1713797457001,-500.0,0.00013972,2]
[323192655,1713797457010,-735.14,0.00013972,2]
[323192656,1713797457019,-751.95,0.00013972,2]
[323192657,1713797457028,-2283.48,0.00013972,2]
[323192658,1713797457038,-868.84,0.00013972,2]
[323192659,1713797457047,-775.71,0.00013972,2]
[323192660,1713797457057,-500.0,0.00013972,2]
[323192661,1713797457066,-500.0,0.00013972,2]
[323192662,1713797457076,-1175.08,0.00013972,2]
[323192663,1713797457085,-711.05,0.00013972,2]
[323192664,1713797457094,-615.78919924,0.00013972,2]
[323192665,1713797457103,-4078.28,0.00013972,2]
[323192666,1713797457113,-1766.64,0.00013972,2]
[323192667,1713797457122,-500.0,0.00013972,2]
[323192668,1713797457132,-727.32,0.00013972,2]
[323192669,1713797457142,-500.0,0.00013972,2]
[323192670,1713797457151,-500.0,0.00013972,2]
[323192671,1713797457160,-545.64,0.00013972,2]
[323192672,1713797457170,-500.0,0.00013972,2]
[323192673,1713797457179,-770.88,0.00013972,2]
[323192674,1713797457188,-500.0,0.00013972,2]
[323192675,1713797457198,-566.54,0.00013972,2]
[323192676,1713797457207,-2213.29,0.00013972,2]
[323192677,1713797457216,-500.0,0.00013972,2]
[323192678,1713797457226,-1806.26,0.00013972,2]
[323192679,1713797457236,-500.0,0.00013972,2]
[323192680,1713797457245,-500.0,0.00013972,2]
[323192681,1713797457255,-954.95,0.00013972,2]
[323192682,1713797457265,-514.67,0.00013972,2]
[323192683,1713797457274,-1514.0,0.00013972,2]
[323192684,1713797457285,-500.0,0.00013972,2]
[323192685,1713797457294,-500.0,0.00013972,2]
[323192686,1713797457304,-500.0,0.00013972,2]
[323192687,1713797457313,-500.0,0.00013972,2]
[323192688,1713797457322,-2643.99,0.00013972,2]
[323192689,1713797457332,-500.0,0.00013972,2]
[323192690,1713797457341,-652.18,0.00013972,2]